[Event "MČR v bleskovém šachu družstev 2019"]
[Site "Teplice, Czech Republic"]
[Date "2019.09.14"]
[Round "4.1"]
[White "Kociscak, Jiri"]
[Black "Jirovsky, Milos"]
[Result "0-1"]
[TimeControl "3 mim. + 2 s"]
[WhiteTitle "IM"]
[BlackTitle "GM"]
[WhiteFideId "322121"]
[BlackFideId "303224"]
[WhiteElo "2417"]
[BlackElo "2499"]

1. d4 {[%clk 00:03:02]} d5 {[%clk 00:03:04]} 2. c4 {[%clk 00:03:03]} {[%emt
00:00:02]} e6 {[%clk 00:03:05]} 3. Nf3 {[%clk 00:03:04]} {[%emt 00:00:01]} Nf6
{[%clk 00:03:06]} 4. g3 {[%clk 00:03:06]} Bb4+ {[%clk 00:03:02]} {[%emt
00:00:07]} 5. Bd2 {[%clk 00:03:07]} Be7 {[%clk 00:03:04]} 6. Bg2 {[%clk
00:03:08]} O-O {[%clk 00:03:04]} {[%emt 00:00:02]} 7. O-O {[%clk 00:03:08]}
{[%emt 00:00:02]} Nbd7 {[%clk 00:03:05]} 8. Qc2 {[%clk 00:03:08]} {[%emt
00:00:03]} c6 {[%clk 00:03:06]} 9. Bf4 {[%clk 00:03:08]} {[%emt 00:00:02]} b6
{[%clk 00:02:58]} {[%emt 00:00:11]} 10. Rd1 {[%clk 00:02:41]} {[%emt 00:00:29]}
Bb7 {[%clk 00:02:55]} {[%emt 00:00:05]} 11. Nc3 {[%clk 00:02:21]} {[%emt
00:00:21]} Nh5 {[%clk 00:02:32]} {[%emt 00:00:25]} 12. Bc1 {[%clk 00:02:20]}
{[%emt 00:00:03]} f5 {[%clk 00:02:33]} {[%emt 00:00:02]} 13. e3 {[%clk
00:01:23]} {[%emt 00:00:58]} Rc8 {[%clk 00:02:33]} {[%emt 00:00:02]} 14. b3
{[%clk 00:01:24]} {[%emt 00:00:01]} Bd6 {[%clk 00:02:32]} {[%emt 00:00:03]} 15.
Bb2 {[%clk 00:01:22]} {[%emt 00:00:05]} Qe7 {[%clk 00:02:31]} {[%emt 00:00:02]}
16. Ne2 {[%clk 00:01:19]} {[%emt 00:00:06]} c5 {[%clk 00:02:20]} {[%emt
00:00:13]} 17. dxc5 {[%clk 00:01:10]} {[%emt 00:00:10]} Bxc5 {[%clk 00:02:11]}
{[%emt 00:00:11]} 18. Nfd4 {[%clk 00:00:54]} {[%emt 00:00:18]} Ndf6 {[%clk
00:01:56]} {[%emt 00:00:17]} 19. Rac1 {[%clk 00:00:43]} {[%emt 00:00:13]} Ne4
{[%clk 00:01:54]} {[%emt 00:00:05]} 20. Qd3 {[%clk 00:00:24]} {[%emt 00:00:21]}
e5 {[%clk 00:01:26]} {[%emt 00:00:31]} 21. Nxf5 {[%clk 00:00:22]} {[%emt
00:00:04]} Rxf5 {[%clk 00:01:22]} {[%emt 00:00:06]} 22. cxd5 {[%clk 00:00:23]}
{[%emt 00:00:01]} Nd6 {[%clk 00:01:16]} {[%emt 00:00:08]} 23. g4 {[%clk
00:00:23]} {[%emt 00:00:01]} Rg5 {[%clk 00:01:09]} {[%emt 00:00:09]} 24. gxh5
{[%clk 00:00:21]} {[%emt 00:00:03]} Rxh5 {[%clk 00:00:56]} {[%emt 00:00:16]} 25.
Ng3 {[%clk 00:00:22]} Rg5 {[%clk 00:00:57]} {[%emt 00:00:01]} 26. a3 {[%clk
00:00:20]} {[%emt 00:00:04]} a5 {[%clk 00:00:57]} {[%emt 00:00:02]} 27. Qd2
{[%clk 00:00:20]} {[%emt 00:00:02]} b5 {[%emt 00:00:13]} 28. Qxa5 {[%clk
00:00:15]} {[%emt 00:00:06]} h5 {[%clk 00:00:38]} {[%emt 00:00:11]} 29. b4
{[%clk 00:00:16]} {[%emt 00:00:01]} Ra8 {[%clk 00:00:39]} 30. Rxc5 {[%clk
00:00:14]} {[%emt 00:00:04]} Rxa5 {[%clk 00:00:40]} {[%emt 00:00:01]} 31. bxa5
{[%clk 00:00:15]} h4 {[%clk 00:00:39]} {[%emt 00:00:03]} 32. a6 {[%clk
00:00:09]} {[%emt 00:00:07]} Bxa6 {[%clk 00:00:36]} {[%emt 00:00:05]} 33. Rc6
{[%clk 00:00:11]} Bb7 {[%clk 00:00:32]} {[%emt 00:00:06]} 34. Rxd6 {[%clk
00:00:12]} {[%emt 00:00:01]} Qxd6 {[%clk 00:00:33]} 35. Ne4 {[%clk 00:00:13]}
{[%emt 00:00:01]} Rxg2+ {[%clk 00:00:32]} {[%emt 00:00:03]} 36. Kxg2 {[%clk
00:00:14]} {[%emt 00:00:01]} Qg6+ {[%clk 00:00:33]} 37. Kf3 {[%clk 00:00:15]}
{[%emt 00:00:01]} Qh5+ {[%clk 00:00:34]} {[%emt 00:00:02]} 0-1

[Event "MČR v bleskovém šachu družstev 2019"]
[Site "Teplice, Czech Republic"]
[Date "2019.09.14"]
[Round "4.2"]
[White "Sokolov, Alexander"]
[Black "Polak, Tomas"]
[Result "1/2-1/2"]
[TimeControl "3 mim. + 2 s"]
[WhiteTitle "FM"]
[BlackTitle "GM"]
[WhiteFideId "4119177"]
[BlackFideId "300560"]
[WhiteElo "2417"]
[BlackElo "2510"]

1. e4 {[%clk 00:03:02]} {[%emt 00:00:01]} e5 {[%clk 00:03:02]} {[%emt
00:00:02]} 2. f4 {[%clk 00:03:03]} {[%emt 00:00:01]} d5 {[%clk 00:03:02]}
{[%emt 00:00:02]} 3. exd5 {[%clk 00:03:04]} {[%emt 00:00:01]} c6 {[%clk
00:03:04]} 4. Nc3 {[%clk 00:03:02]} {[%emt 00:00:04]} exf4 {[%clk 00:03:04]}
{[%emt 00:00:02]} 5. Nf3 {[%clk 00:03:02]} {[%emt 00:00:03]} Bd6 {[%clk
00:03:04]} {[%emt 00:00:02]} 6. d4 {[%clk 00:03:02]} {[%emt 00:00:02]} Ne7
{[%clk 00:03:03]} {[%emt 00:00:02]} 7. Bd3 {[%clk 00:02:57]} {[%emt 00:00:07]}
O-O {[%clk 00:02:58]} {[%emt 00:00:07]} 8. O-O {[%clk 00:02:48]} {[%emt
00:00:11]} Nxd5 {[%clk 00:02:55]} {[%emt 00:00:04]} 9. Nxd5 {[%clk 00:02:29]}
{[%emt 00:00:23]} cxd5 {[%clk 00:02:56]} 10. Ne5 {[%clk 00:02:29]} {[%emt
00:00:01]} Nc6 {[%clk 00:02:33]} {[%emt 00:00:25]} 11. Bxf4 {[%clk 00:01:49]}
{[%emt 00:00:43]} Nb4 {[%clk 00:02:07]} {[%emt 00:00:27]} 12. c3 {[%clk
00:01:32]} {[%emt 00:00:19]} Nxd3 {[%clk 00:02:07]} {[%emt 00:00:02]} 13. Nxd3
{[%clk 00:01:33]} {[%emt 00:00:01]} Be6 {[%clk 00:01:41]} {[%emt 00:00:28]} 14.
Qh5 {[%clk 00:01:30]} {[%emt 00:00:05]} Qd7 {[%clk 00:01:30]} {[%emt 00:00:13]}
15. Bxd6 {[%clk 00:01:30]} {[%emt 00:00:02]} Qxd6 {[%clk 00:01:31]} 16. Rf4
{[%clk 00:01:27]} {[%emt 00:00:05]} f6 {[%clk 00:01:25]} {[%emt 00:00:09]} 17.
Rh4 {[%clk 00:01:24]} {[%emt 00:00:05]} h6 {[%clk 00:01:25]} {[%emt 00:00:01]}
18. Rf4 {[%clk 00:01:13]} {[%emt 00:00:13]} Bf7 {[%clk 00:01:18]} {[%emt
00:00:09]} 19. Qg4 {[%clk 00:01:14]} Qe6 {[%clk 00:01:04]} {[%emt 00:00:16]} 20.
Qg3 {[%clk 00:01:08]} {[%emt 00:00:08]} Rae8 {[%clk 00:01:03]} {[%emt
00:00:03]} 21. Raf1 {[%clk 00:01:08]} {[%emt 00:00:03]} Qe3+ {[%clk 00:01:02]}
{[%emt 00:00:03]} 22. Qxe3 {[%clk 00:01:08]} {[%emt 00:00:02]} Rxe3 {[%clk
00:01:03]} 23. R4f3 {[%clk 00:01:02]} {[%emt 00:00:08]} Rfe8 {[%clk 00:01:03]}
{[%emt 00:00:02]} 24. Rxe3 {[%clk 00:01:03]} {[%emt 00:00:01]} Rxe3 {[%clk
00:01:05]} {[%emt 00:00:01]} 25. Nc1 {[%clk 00:01:00]} {[%emt 00:00:05]} Kf8
{[%clk 00:00:54]} {[%emt 00:00:13]} 26. Kf2 {[%clk 00:01:01]} {[%emt 00:00:01]}
Re6 {[%clk 00:00:54]} {[%emt 00:00:02]} 27. Re1 {[%clk 00:01:02]} Rb6 {[%clk
00:00:54]} {[%emt 00:00:02]} 28. Re2 {[%clk 00:01:00]} {[%emt 00:00:05]} Bh5
{[%clk 00:00:55]} {[%emt 00:00:01]} 29. Rd2 {[%clk 00:01:01]} Bg6 {[%clk
00:00:54]} {[%emt 00:00:04]} 30. Ne2 {[%clk 00:01:01]} {[%emt 00:00:01]} Ke7
{[%clk 00:00:53]} {[%emt 00:00:02]} 31. Nf4 {[%clk 00:01:03]} {[%emt 00:00:01]}
Be4 {[%clk 00:00:54]} {[%emt 00:00:01]} 32. Ke3 {[%clk 00:01:02]} {[%emt
00:00:02]} g5 {[%clk 00:00:54]} {[%emt 00:00:02]} 33. Ne2 {[%clk 00:01:00]}
{[%emt 00:00:05]} Kd6 {[%clk 00:00:53]} {[%emt 00:00:03]} 34. Ng3 {[%clk
00:01:00]} {[%emt 00:00:02]} Bg6 {[%clk 00:00:53]} {[%emt 00:00:01]} 35. Rf2
{[%clk 00:00:53]} {[%emt 00:00:09]} Kd7 {[%clk 00:00:53]} {[%emt 00:00:02]} 36.
b3 {[%clk 00:00:54]} {[%emt 00:00:02]} Rc6 {[%clk 00:00:52]} {[%emt 00:00:03]}
37. Kd2 {[%clk 00:00:54]} {[%emt 00:00:02]} Ke6 {[%clk 00:00:51]} {[%emt
00:00:03]} 38. Re2+ {[%clk 00:00:54]} {[%emt 00:00:03]} Kf7 {[%clk 00:00:52]}
39. Rf2 {[%clk 00:00:50]} {[%emt 00:00:06]} Ke6 {[%clk 00:00:50]} {[%emt
00:00:04]} 40. Nf1 {[%clk 00:00:49]} {[%emt 00:00:03]} Be4 {[%clk 00:00:47]}
{[%emt 00:00:04]} 41. Ng3 {[%clk 00:00:43]} {[%emt 00:00:09]} Bg6 {[%clk
00:00:40]} {[%emt 00:00:09]} 42. Nf1 {[%clk 00:00:34]} {[%emt 00:00:11]} Bb1
{[%clk 00:00:39]} {[%emt 00:00:03]} 43. a4 {[%clk 00:00:31]} {[%emt 00:00:05]}
f5 {[%clk 00:00:37]} {[%emt 00:00:05]} 44. Ne3 {[%clk 00:00:28]} {[%emt
00:00:04]} Be4 {[%clk 00:00:37]} {[%emt 00:00:01]} 45. g3 {[%clk 00:00:30]} Rb6
{[%clk 00:00:36]} {[%emt 00:00:04]} 46. b4 {[%clk 00:00:31]} {[%emt 00:00:01]}
Rc6 {[%clk 00:00:36]} {[%emt 00:00:02]} 47. Rf1 {[%clk 00:00:32]} a5 {[%clk
00:00:35]} {[%emt 00:00:04]} 48. b5 {[%clk 00:00:32]} {[%emt 00:00:02]} Rc7
{[%clk 00:00:35]} {[%emt 00:00:01]} 49. Rf2 {[%clk 00:00:29]} {[%emt 00:00:06]}
Rf7 {[%clk 00:00:35]} {[%emt 00:00:02]} 50. c4 {[%clk 00:00:27]} {[%emt
00:00:05]} dxc4 {[%clk 00:00:33]} {[%emt 00:00:04]} 51. Nxc4 {[%clk 00:00:27]}
{[%emt 00:00:01]} Kd5 {[%clk 00:00:34]} {[%emt 00:00:01]} 52. Nxa5 {[%clk
00:00:25]} {[%emt 00:00:05]} Kxd4 {[%clk 00:00:34]} {[%emt 00:00:02]} 53. Rf1
{[%clk 00:00:19]} {[%emt 00:00:08]} Rc7 {[%clk 00:00:29]} {[%emt 00:00:06]} 54.
Nb3+ {[%clk 00:00:18]} {[%emt 00:00:03]} Kd5 {[%clk 00:00:29]} {[%emt
00:00:02]} 55. Rc1 {[%clk 00:00:10]} {[%emt 00:00:10]} Rxc1 56. Nxc1 {[%clk
00:00:12]} Kc4 {[%clk 00:00:29]} {[%emt 00:00:01]} 57. Ne2 {[%clk 00:00:13]}
{[%emt 00:00:01]} Kb4 {[%clk 00:00:27]} {[%emt 00:00:04]} 58. Nc3 {[%clk
00:00:13]} {[%emt 00:00:01]} Bg2 {[%clk 00:00:24]} {[%emt 00:00:04]} 59. Kd3
{[%clk 00:00:14]} {[%emt 00:00:01]} b6 {[%clk 00:00:23]} {[%emt 00:00:03]} 60.
Kd4 {[%clk 00:00:16]} Bb7 {[%clk 00:00:21]} {[%emt 00:00:03]} 61. Kd3 {[%clk
00:00:16]} {[%emt 00:00:02]} f4 {[%clk 00:00:21]} {[%emt 00:00:02]} 62. gxf4
{[%clk 00:00:16]} {[%emt 00:00:02]} gxf4 {[%clk 00:00:22]} 63. Ne2 {[%clk
00:00:10]} {[%emt 00:00:09]} f3 {[%clk 00:00:22]} {[%emt 00:00:02]} 64. Nd4
{[%clk 00:00:10]} {[%emt 00:00:02]} Kxa4 {[%clk 00:00:21]} {[%emt 00:00:03]} 65.
Nf5 {[%emt 00:00:03]} f2 {[%clk 00:00:16]} {[%emt 00:00:05]} 66. Ke2 {[%clk
00:00:12]} {[%emt 00:00:01]} Kxb5 {[%clk 00:00:14]} {[%emt 00:00:05]} 67. Nxh6
{[%clk 00:00:12]} {[%emt 00:00:01]} Bc8 {[%clk 00:00:06]} {[%emt 00:00:09]} 68.
Nf7 {[%clk 00:00:13]} {[%emt 00:00:02]} Kc5 {[%clk 00:00:04]} {[%emt 00:00:03]}
69. Ne5 {[%clk 00:00:14]} {[%emt 00:00:01]} Kd4 {[%clk 00:00:03]} {[%emt
00:00:03]} 70. Nc6+ {[%clk 00:00:15]} {[%emt 00:00:01]} Kc5 {[%clk 00:00:03]}
{[%emt 00:00:02]} 71. Na7 {[%clk 00:00:15]} {[%emt 00:00:01]} Bd7 {[%clk
00:00:04]} {[%emt 00:00:02]} 72. Kxf2 {[%clk 00:00:16]} {[%emt 00:00:01]} Kd6
{[%clk 00:00:05]} 73. h4 {[%clk 00:00:16]} {[%emt 00:00:02]} Kc7 {[%clk
00:00:06]} 74. h5 {[%clk 00:00:18]} Kb7 75. h6 Bf5 {[%clk 00:00:08]} {[%emt
00:00:01]} 76. Nb5 {[%clk 00:00:21]} Bh7 {[%clk 00:00:08]} {[%emt 00:00:03]} 77.
Ke3 {[%clk 00:00:22]} 1/2-1/2

[Event "MČR v bleskovém šachu družstev 2019"]
[Site "Teplice, Czech Republic"]
[Date "2019.09.14"]
[Round "4.3"]
[White "Stocek, Jiri"]
[Black "Dolezal, Radoslav"]
[Result "1/2-1/2"]
[TimeControl "3 mim. + 2 s"]
[WhiteTitle "GM"]
[BlackTitle "IM"]
[WhiteFideId "304760"]
[BlackFideId "304735"]
[WhiteElo "2505"]
[BlackElo "2359"]

1. c4 {[%clk 00:03:03]} {[%emt 00:13:10]} c6 {[%clk 00:03:03]} {[%emt
00:00:01]} 2. Nf3 {[%clk 00:03:00]} {[%emt 00:00:05]} d5 {[%clk 00:03:04]} 3.
g3 {[%clk 00:02:59]} {[%emt 00:00:04]} Nf6 {[%clk 00:02:59]} {[%emt 00:00:07]}
4. Bg2 {[%clk 00:02:59]} {[%emt 00:00:01]} Bf5 {[%clk 00:02:55]} {[%emt
00:00:06]} 5. Qb3 {[%clk 00:02:58]} {[%emt 00:00:03]} Qb6 {[%clk 00:02:53]}
{[%emt 00:00:04]} 6. d3 {[%clk 00:02:56]} {[%emt 00:00:04]} e6 {[%clk
00:02:50]} {[%emt 00:00:05]} 7. Be3 {[%clk 00:02:53]} {[%emt 00:00:04]} Qxb3
{[%clk 00:02:49]} {[%emt 00:00:04]} 8. axb3 {[%clk 00:02:54]} {[%emt 00:00:02]}
a6 {[%clk 00:02:50]} {[%emt 00:00:01]} 9. Nc3 {[%clk 00:02:48]} {[%emt
00:00:07]} h6 {[%clk 00:02:41]} {[%emt 00:00:12]} 10. cxd5 {[%clk 00:02:40]}
{[%emt 00:00:10]} exd5 {[%clk 00:02:37]} {[%emt 00:00:06]} 11. Ne5 {[%clk
00:02:34]} {[%emt 00:00:08]} Nbd7 {[%clk 00:02:28]} {[%emt 00:00:12]} 12. Nxd7
{[%clk 00:02:25]} {[%emt 00:00:11]} Nxd7 {[%clk 00:02:28]} {[%emt 00:00:02]} 13.
O-O {[%clk 00:02:17]} {[%emt 00:00:10]} Be7 {[%clk 00:02:16]} {[%emt 00:00:14]}
14. Bd4 {[%clk 00:02:13]} {[%emt 00:00:06]} O-O {[%clk 00:02:16]} {[%emt
00:00:02]} 15. e4 {[%clk 00:02:14]} {[%emt 00:00:02]} dxe4 {[%clk 00:02:18]}
{[%emt 00:00:01]} 16. dxe4 {[%clk 00:02:14]} {[%emt 00:00:01]} Be6 {[%clk
00:02:19]} 17. Rfd1 {[%clk 00:01:54]} {[%emt 00:00:23]} Rad8 {[%clk 00:02:01]}
{[%emt 00:00:20]} 18. Ne2 {[%clk 00:01:02]} {[%emt 00:00:53]} Bxb3 {[%clk
00:01:58]} {[%emt 00:00:06]} 19. Rdc1 {[%clk 00:01:01]} {[%emt 00:00:03]} Nf6
{[%clk 00:01:22]} {[%emt 00:00:38]} 20. Bb6 {[%clk 00:00:46]} {[%emt 00:00:17]}
Rd2 {[%clk 00:01:14]} {[%emt 00:00:10]} 21. Nd4 {[%clk 00:00:47]} {[%emt
00:00:02]} Rxb2 {[%clk 00:00:40]} {[%emt 00:00:36]} 22. Ba5 {[%clk 00:00:30]}
{[%emt 00:00:19]} Be6 {[%clk 00:00:33]} {[%emt 00:00:08]} 23. Bc3 {[%clk
00:00:30]} {[%emt 00:00:02]} Rb6 {[%clk 00:00:31]} {[%emt 00:00:04]} 24. Ba5
{[%clk 00:00:30]} {[%emt 00:00:02]} Rb2 {[%clk 00:00:23]} {[%emt 00:00:09]} 25.
Bc3 {[%clk 00:00:30]} {[%emt 00:00:02]} Rb6 {[%emt 00:00:22]} 1/2-1/2

[Event "MČR v bleskovém šachu družstev 2019"]
[Site "Teplice, Czech Republic"]
[Date "2019.09.14"]
[Round "4.4"]
[White "Postupa, Pavel"]
[Black "Vymazal, Bronislav"]
[Result "0-1"]
[TimeControl "3 mim. + 2 s"]
[WhiteFideId "326410"]
[BlackFideId "318396"]
[WhiteElo "2184"]
[BlackElo "2309"]

1. e4 {[%clk 00:03:03]} b6 {[%clk 00:03:03]} {[%emt 00:00:02]} 2. d4 {[%clk
00:03:04]} {[%emt 00:00:01]} Bb7 {[%clk 00:03:04]} 3. Bd3 {[%clk 00:03:05]} Nf6
{[%clk 00:03:05]} 4. Qe2 {[%clk 00:03:04]} {[%emt 00:00:05]} Nc6 {[%clk
00:03:05]} {[%emt 00:00:02]} 5. c3 {[%clk 00:03:04]} {[%emt 00:00:02]} e5
{[%clk 00:03:06]} {[%emt 00:00:01]} 6. d5 {[%clk 00:03:03]} {[%emt 00:00:03]}
Ne7 {[%clk 00:03:07]} {[%emt 00:00:01]} 7. Nd2 {[%clk 00:03:00]} {[%emt
00:00:04]} Ng6 {[%clk 00:03:07]} {[%emt 00:00:02]} 8. Nf1 {[%clk 00:03:00]}
{[%emt 00:00:02]} c6 {[%clk 00:03:03]} {[%emt 00:00:06]} 9. dxc6 {[%clk
00:02:59]} {[%emt 00:00:03]} Bxc6 {[%clk 00:03:01]} {[%emt 00:00:04]} 10. Ng3
{[%clk 00:02:58]} {[%emt 00:00:03]} d5 {[%clk 00:02:58]} {[%emt 00:00:04]} 11.
Bg5 {[%clk 00:02:57]} {[%emt 00:00:03]} Be7 {[%clk 00:02:25]} {[%emt 00:00:35]}
12. Bxf6 {[%clk 00:02:36]} {[%emt 00:00:23]} Bxf6 {[%clk 00:02:25]} {[%emt
00:00:02]} 13. exd5 {[%clk 00:02:30]} {[%emt 00:00:09]} Nf4 {[%clk 00:02:15]}
{[%emt 00:00:12]} 14. Qf1 {[%clk 00:01:54]} {[%emt 00:00:38]} Qxd5 {[%clk
00:00:57]} {[%emt 00:01:19]} 15. Be4 {[%clk 00:01:55]} {[%emt 00:00:02]} Qc5
{[%clk 00:00:58]} {[%emt 00:00:01]} 16. Bxc6+ {[%clk 00:01:55]} {[%emt
00:00:02]} Qxc6 {[%clk 00:00:59]} {[%emt 00:00:01]} 17. Nf3 {[%clk 00:01:52]}
{[%emt 00:00:04]} Rd8 {[%clk 00:00:53]} {[%emt 00:00:08]} 18. Rd1 {[%clk
00:01:41]} {[%emt 00:00:14]} O-O {[%clk 00:00:52]} {[%emt 00:00:02]} 19. Nf5
{[%clk 00:01:27]} {[%emt 00:00:16]} Qe4+ {[%clk 00:00:44]} {[%emt 00:00:10]} 20.
Ne3 {[%clk 00:01:27]} {[%emt 00:00:02]} Rxd1+ {[%clk 00:00:40]} {[%emt
00:00:07]} 21. Kxd1 {[%clk 00:01:27]} {[%emt 00:00:02]} Qb1+ {[%clk 00:00:40]}
{[%emt 00:00:01]} 22. Kd2 {[%clk 00:01:13]} {[%emt 00:00:17]} Rd8+ {[%clk
00:00:41]} {[%emt 00:00:01]} 23. Nd4 {[%clk 00:01:12]} {[%emt 00:00:03]} Qxb2+
{[%clk 00:00:40]} {[%emt 00:00:03]} 24. Nec2 {[%clk 00:01:12]} {[%emt
00:00:02]} exd4 {[%clk 00:00:40]} {[%emt 00:00:02]} 25. c4 {[%clk 00:01:11]}
{[%emt 00:00:03]} d3 {[%clk 00:00:41]} {[%emt 00:00:01]} 26. Ke1 {[%emt
00:00:10]} 0-1

[Event "MČR v bleskovém šachu družstev 2019"]
[Site "Teplice, Czech Republic"]
[Date "2019.09.14"]
[Round "4.5"]
[White "Novotny, Michal"]
[Black "Liska, Jiri"]
[Result "1-0"]
[TimeControl "3 mim. + 2 s"]
[WhiteTitle "FM"]
[BlackTitle "FM"]
[WhiteFideId "310980"]
[WhiteElo "2299"]
[BlackElo "2241"]

1. d4 {[%clk 00:03:01]} {[%emt 00:00:02]} Nf6 {[%clk 00:03:01]} {[%emt
00:00:03]} 2. Nf3 {[%clk 00:03:02]} g6 {[%clk 00:03:02]} {[%emt 00:00:02]} 3.
Nc3 {[%clk 00:03:04]} d5 {[%clk 00:03:03]} {[%emt 00:00:02]} 4. Bf4 {[%clk
00:03:05]} Bg7 {[%clk 00:03:01]} {[%emt 00:00:04]} 5. e3 {[%clk 00:03:06]} O-O
{[%clk 00:03:01]} {[%emt 00:00:02]} 6. Be2 {[%clk 00:03:08]} c5 {[%clk
00:02:58]} {[%emt 00:00:05]} 7. Ne5 {[%clk 00:03:08]} {[%emt 00:00:02]} cxd4
{[%clk 00:02:40]} {[%emt 00:00:20]} 8. exd4 {[%clk 00:03:09]} {[%emt 00:00:01]}
Nc6 {[%clk 00:02:41]} {[%emt 00:00:01]} 9. O-O {[%clk 00:03:09]} {[%emt
00:00:02]} Bf5 {[%clk 00:02:34]} {[%emt 00:00:09]} 10. Nxc6 {[%clk 00:03:09]}
{[%emt 00:00:02]} bxc6 {[%clk 00:02:35]} {[%emt 00:00:01]} 11. Qd2 {[%clk
00:03:04]} {[%emt 00:00:07]} Ne4 {[%clk 00:02:15]} {[%emt 00:00:21]} 12. Nxe4
{[%clk 00:03:04]} {[%emt 00:00:02]} Bxe4 {[%clk 00:02:16]} {[%emt 00:00:01]} 13.
c3 {[%clk 00:02:57]} {[%emt 00:00:10]} Qb6 {[%clk 00:02:14]} {[%emt 00:00:04]}
14. b4 {[%clk 00:02:57]} {[%emt 00:00:03]} a5 {[%clk 00:02:13]} {[%emt
00:00:02]} 15. a3 {[%clk 00:02:56]} {[%emt 00:00:02]} Rfe8 {[%clk 00:01:58]}
{[%emt 00:00:17]} 16. Rfe1 {[%clk 00:02:54]} {[%emt 00:00:05]} e5 {[%clk
00:01:46]} {[%emt 00:00:14]} 17. Be3 {[%clk 00:02:31]} {[%emt 00:00:24]} Qc7
{[%clk 00:01:10]} {[%emt 00:00:38]} 18. Bf1 {[%clk 00:02:25]} {[%emt 00:00:09]}
h5 {[%clk 00:01:04]} {[%emt 00:00:08]} 19. h3 {[%clk 00:02:15]} {[%emt
00:00:12]} Bf5 {[%clk 00:01:05]} {[%emt 00:00:02]} 20. Rac1 {[%clk 00:02:01]}
{[%emt 00:00:15]} Qd6 {[%clk 00:00:42]} {[%emt 00:00:25]} 21. b5 {[%clk
00:01:50]} {[%emt 00:00:14]} cxb5 {[%clk 00:00:38]} {[%emt 00:00:05]} 22. Bxb5
{[%clk 00:01:51]} {[%emt 00:00:01]} Reb8 {[%clk 00:00:36]} {[%emt 00:00:04]} 23.
a4 {[%clk 00:01:52]} {[%emt 00:00:01]} Bd7 {[%clk 00:00:23]} {[%emt 00:00:15]}
24. dxe5 {[%clk 00:01:12]} {[%emt 00:00:42]} Bxe5 {[%clk 00:00:21]} {[%emt
00:00:04]} 25. Bxd7 {[%clk 00:01:03]} {[%emt 00:00:12]} Qxd7 {[%clk 00:00:22]}
{[%emt 00:00:01]} 26. Bd4 {[%clk 00:01:04]} Bc7 {[%clk 00:00:06]} {[%emt
00:00:18]} 27. Qh6 {[%clk 00:01:02]} {[%emt 00:00:04]} f5 {[%clk 00:00:03]}
{[%emt 00:00:05]} 28. Qh8+ {[%clk 00:01:01]} {[%emt 00:00:03]} 1-0